Cogmind - Beta 17.1 @@@ ROGUE MODE // 2026.09.07 @ 06:47:07 Player: Somberlain Result: Destroyed by 4P-669(R) with Subdweller Laser Performance ------------- Evolutions (0) 0 Regions Visited (2) 400 Robots Destroyed (15) 75 Value Destroyed (404) 404 Prototype IDs (1) 20 Alien Tech Used (0) 0 Bonus (0) 0 TOTAL SCORE: 899 Bonus ------- None Cogmind --------- Core Integrity 0/250 Matter 260/300 Energy 229/250 System Corruption 0% Temperature Cool (6) Movement Rolling (95) Location -10/Subcaves Parts ------- > --- POWER (1) -------- Ion Engine > --- PROPULSION (2) --- Wheel Subdweller Monowheel > --- UTILITY (2) ------ Improved Heat Sink Signal Interpreter > --- WEAPON (2) ------- Particle Cannon Particle Cannon > --- INVENTORY (5) ---- Small Storage Unit Sensor Array Improved Assault Rifle Improved Assault Rifle Plasma Cutter Peak State ------------ > --- POWER ------------ Ion Engine > --- PROPULSION ------- Wheel Subdweller Monowheel > --- UTILITY ---------- Improved Heat Sink Signal Interpreter > --- WEAPON ----------- Particle Cannon Particle Cannon > --- INVENTORY -------- Small Storage Unit Sensor Array Improved Assault Rifle Improved Assault Rifle Plasma Cutter [Rating: 13] Favorites ----------- Power Ion Engine Engine Ion Engine Propulsion Aluminum Leg Leg Aluminum Leg Wheel Subdweller Monowheel Utility Small Storage Unit Device Improved Heat Sink Storage Small Storage Unit Processor Signal Interpreter Weapon Improved Assault Rifle Energy Cannon Particle Cannon Ballistic Gun Improved Assault Rifle Special Weapon Plasma Cutter Build | -11 -10 -10 ------- Run | Yrd Mat Sub Slots Evolved . | . . . Power . | . . . Propulsion . | . . . Utility . | . . . Weapon . | . . . Parts Attached 22 | 6 8 8 Power 3 | 1 1 1 Engine 3 | 1 1 1 Core . | . . . Reactor . | . . . Propulsion 8 | 2 3 3 Treads . | . . . Leg 5 | 2 3 . Wheel 3 | . . 3 Hover . | . . . Flight . | . . . Utility 3 | 1 1 1 Device 1 | . . 1 Storage 1 | 1 . . Processor 1 | . 1 . Hackware . | . . . Protection . | . . . Artifact . | . . . Weapon 8 | 2 3 3 Energy Gun . | . . . Energy Cannon 2 | . . 2 Ballistic Gun 5 | 2 2 1 Ballistic Cannon . | . . . Launcher . | . . . Special Weapon 1 | . 1 . Impact Weapon . | . . . Slashing Weapon . | . . . Piercing Weapon . | . . . Special Melee Weapon . | . . . Unidentified Prototypes 1 | . 1 . Parts Lost 5 | . 2 3 Power 2 | . 1 1 Propulsion 3 | . 1 2 Utility . | . . . Weapon . | . . . Highest Loss Streak 2 | . 1 2 To Critical Strikes . | . . . Average Backups 5 | . 5 6 Power . | . . . Propulsion . | . . . Utility 1 | . . 2 Weapon 3 | . 3 3 Tool/Special . | . . . Unused Backups 2 | . . 2 Power . | . . . Propulsion . | . . . Utility 1 | . . 1 Weapon 1 | . . 1 Tool/Special . | . . . Average Slot Usage (%) 88 | . 84 94 Engine 13 | . 13 12 Leg 16 | . 26 5 Wheel 8 | . . 18 Device 1 | . . 2 Storage 12 | . 14 11 Processor 7 | . 1 14 Energy Cannon 8 | . . 19 Ballistic Gun 17 | . 25 6 Special Weapon 2 | . 2 2 Peak Build Rating 13 | 6 11 13 Average Rating 10 | 4 9 11 On Entrance 5 | . 6 11 Avg Prop Armor Cover (%) . | . . . Naked Turns . | . . . Heaviest Build 18 | 12 16 18 Greatest Support 30 | 20 20 30 Greatest Overweight (x) 5 | . 1 5 Average Overweight (x) . | . . . Largest Inventory Capacity 8 | 8 8 8 Average Capacity 7 | 6 8 7 Most Carried 8 | . 8 8 Average Carried 5 | . 5 6 Final Capacity 8 | 8 8 5 Final Carried 8 | . 8 5 Class Distribution -------------------- 100% | Mutant Dominant Class ---------------- Mutant | -10/Materials Mutant | -10/Subcaves Resources | -11 -10 -10 ----------- Run | Yrd Mat Sub Matter Collected 680 | 198 257 225 Remotely . | . . . Salvage Created 522 | . 383 139 Parts 24 | . 19 5 Haulers Intercepted . | . . . Recyclers Shooed . | . . . Parts Field Recycled . | . . . Retrieved Matter . | . . . Parts Self-Destructed . | . . . Prevented . | . . . Parts Restored . | . . . Kills | -11 -10 -10 ------- Run | Yrd Mat Sub Combat Hostiles Destroyed 12 | . 9 3 Guns 10 | . 9 1 Cannons 2 | . . 2 Classes Destroyed 6 | . 5 1 Recycler 1 | . 1 . Operator 1 | . 1 . Watcher 1 | . 1 . Swarmer 4 | . 4 . Grunt 5 | . 5 . Subdweller 3 | . . 3 Best Kill Streak 3 | . 3 2 Combat Bots Only 3 | . 3 2 Max Kills in Single Turn 2 | . 2 1 Gunslinging 1 | . 1 . Exploded . | . . . Melee . | . . . Uniques/NPCs Destroyed . | . . . Combat | -11 -10 -10 -------- Run | Yrd Mat Sub Hostile Shots Fired 124 | . 90 34 Missed 36 | . 28 8 Hits 88 | . 62 26 Projectile 88 | . 62 26 Critical Strikes 1 | . . 1 Damage Taken 1225 | . 625 600 Core 265 | . 171 94 Absorbed by Shields . | . . . Core Remaining (%) 100 | 100 . . Volleys Fired 68 | . 48 20 Largest 2 | . 2 2 Hottest 136 | . 46 136 Shots Fired 134 | . 94 40 Gun 115 | . 93 22 Cannon 18 | . . 18 Launcher . | . . . Special 1 | . 1 . Kinetic 115 | . 93 22 Thermal 19 | . 1 18 Explosive . | . . . Electromagnetic . | . . . Robot Hit Streak 11 | . 7 11 Robot Miss Streak 4 | . 4 2 Penetration Max . | . . . Secondary Targets 3 | . 3 . Max Gunslinging Chain 1 | . 1 . Shots Hit Robots 92 | . 62 30 Core Hits 24 | . 18 6 Critical Kills 1 | . 1 . Critical Parts Destroyed . | . . . Critical Strikes 1 | . 1 . Destroy 1 | . 1 . Melee Attacks . | . . . Impact . | . . . Slashing . | . . . Piercing . | . . . Sneak Attacks . | . . . Combat Hostiles . | . . . Follow-up Attacks . | . . . Damage Inflicted 1403 | . 886 517 Guns 1116 | . 886 230 Cannons 287 | . . 287 Explosions . | . . . Melee . | . . . Ramming . | . . . Kinetic 1116 | . 886 230 Thermal 287 | . . 287 Explosive . | . . . Electromagnetic . | . . . Impact . | . . . Slashing . | . . . Piercing . | . . . Highest Corruption . | . . . Average Corruption . | . . . Corruption Purged . | . . . Corruption Blocked . | . . . Overload Shots . | . . . Overflow Damage . | . . . Projectiles . | . . . Explosions . | . . . Melee . | . . . Knockbacks . | . . . Impact . | . . . Kinetic . | . . . Secondary . | . . . Self-Inflicted Damage . | . . . Shots . | . . . Rammed . | . . . Targets Rammed . | . . . Kicked . | . . . Crushed . | . . . Highest Temperature 30 | . 30 . Average Temperature 11 | . 11 . Received Heat Transfer 381 | . 216 165 Siege Activations . | . . . Martial Activations . | . . . Shielding Activations . | . . . Robots Disrupted . | . . . Combat Hostiles . | . . . Robots Corrupted . | . . . Combat Hostiles . | . . . Parts Fried . | . . . Impact Corruptions . | . . . Robots Melted . | . . . Combat Hostiles . | . . . Parts Melted 1 | . . 1 Heat Transferred 518 | . . 518 Parts Sabotaged . | . . . Parts Stolen . | . . . Parts Stripped . | . . . Power Chain Reactions . | . . . Alert | -11 -10 -10 ------- Run | Yrd Mat Sub Maximum Alert Level . | . . . Low Security (%) 100 | 100 100 . Level 1 . | . . . Level 2 . | . . . Level 3 . | . . . Level 4 . | . . . Level 5 . | . . . High Security . | . . . Max Security . | . . . Peak Influence 73 | . 73 . Initial . | . . . Average 23 | . 25 . Influence Increases 252 | . 252 . Destroy 0b10 Robot/C 180 | . 180 . Destroy 0b10 Robot/NC 15 | . 15 . Destroy Leader 42 | . 42 . Disable Machine 15 | . 15 . Influence Decreases 252 | . 198 54 Entered New Map 26 | . . 26 Time Decay 206 | . 178 28 Lost Part 20 | . 20 . Squads Dispatched 2 | . 2 . Investigation . | . . . Extermination . | . . . Reinforcement 2 | . 2 . Assault . | . . . Garrison . | . . . Intercept . | . . . Searches Triggered . | . . . Construction Impeded . | . . . Haulers Reinforced . | . . . Active Scanning Responses . | . . . Cargo Convoy Interrupts . | . . . Stealth | -11 -10 -10 --------- Run | Yrd Mat Sub Distress Signals . | . . . Communications Jammed . | . . . Distress Signals . | . . . Times Spotted 19 | . 13 6 Peak Tracking Total 4 | . 4 2 Tactical Retreats 1 | . . 1 Traps | -11 -10 -10 ------- Run | Yrd Mat Sub Traps Triggered . | . . . Indirectly . | . . . Trap Hack Attempts . | . . . Triggered . | . . . Disarmed . | . . . Reprogrammed . | . . . Reused . | . . . Traps Extracted . | . . . Installed . | . . . Triggered . | . . . Machines | -11 -10 -10 ---------- Run | Yrd Mat Sub Machines Disabled 1 | . 1 . Max in Single Turn 1 | . 1 . Machines Repaired . | . . . Machines Dismantled 1 | . 1 . Machines Sabotaged . | . . . Overloaded Fab Kills . | . . . Hacking | -11 -10 -10 --------- Run | Yrd Mat Sub Machines Accessed 1 | . 1 . Terminals 1 | . 1 . Fabricators . | . . . Repair Stations . | . . . Recycling Units . | . . . Scanalyzers . | . . . Garrison Access . | . . . Total Hacks 2 | . 2 . Successful 1 | . 1 . Failed 1 | . 1 . Catastrophic . | . . . Database Lockouts . | . . . Manual . | . . . Terminals 2 | . 2 . Fabricators . | . . . Repair Stations . | . . . Recycling Units . | . . . Scanalyzers . | . . . Garrison Access . | . . . Terminal Hacks 1 | . 1 . Branch Access Points 1 | . 1 . Fabricator Hacks . | . . . Repair Station Hacks . | . . . Recycling Unit Hacks . | . . . Scanalyzer . | . . . Garrison Access Hacks . | . . . Unauthorized Hacks . | . . . Terminals . | . . . Fabricators . | . . . Repair Stations . | . . . Recycling Units . | . . . Scanalyzers . | . . . Garrison Access . | . . . Data Cores Recovered . | . . . Used . | . . . Hacking Detections 1 | . 1 . Full Trace Events . | . . . Feedback Events . | . . . Feedback Blocked . | . . . Robot Schematics Acquired . | . . . Robots Built . | . . . Authchips . | . . . Time . | . . . Total Robot Build Rating . | . . . Part Schematics Acquired . | . . . Parts Built . | . . . Authchips . | . . . Time . | . . . Total Part Build Rating . | . . . Part Studies Acquired . | . . . Parts Repaired . | . . . Time . | . . . Parts Recycled . | . . . Recycled Matter . | . . . Retrieved Matter . | . . . Retrieved Components . | . . . Parts Scanalyzed . | . . . Part Schematics Acquired . | . . . Parts Damaged . | . . . Bothacking | -11 -10 -10 ------------ Run | Yrd Mat Sub Used RIF Installer . | . . . Robots Hacked . | . . . Non-combat . | . . . Combat . | . . . Robot Hacks Applied . | . . . Relay Couplers Released . | . . . Fabnet Peak Effective % . | . . . Robots Rewired . | . . . Allies Hacked . | . . . Hacks Repelled . | . . . Allies | -11 -10 -10 -------- Run | Yrd Mat Sub Total Allies . | . . . Largest Group . | . . . Highest-Rated Group . | . . . Highest-Rated Ally . | . . . Total Orders . | . . . Ally Attacks . | . . . Total Damage . | . . . Kills . | . . . Allies Corrupted . | . . . Allies Melted 1 | . . 1 Intel | -11 -10 -10 ------- Run | Yrd Mat Sub Active Infowar (turns) . | . . . Robot Analysis Total . | . . . Derelict Logs Recovered 2 | . . 2 Drone Launches . | . . . Drone Recoveries . | . . . Exploration | -11 -10 -10 ------------- Run | Yrd Mat Sub Turns Passed 1084 | 48 579 457 Spaces Moved 704 | 36 322 346 Core 13 | 5 . 8 Treads . | . . . Legs 391 | 31 322 38 Wheels 300 | . . 300 Hover . | . . . Flight . | . . . Fastest Speed 50 | 50 120 95 Average Speed 113 | 110 124 104 Slowest Speed 300 | 120 190 300 Overloaded Moves . | . . . Propulsion Burnouts . | . . . Robots Hopped . | . . . Potential Cave-ins . | . . . Cave-ins Triggered . | . . . Exploration Rate (%) 21 | 4 42 18 Regions Visited 2 Branch Regions 1 Pre-discovered Areas 1 | . . 1 Known Exits Taken 1 | . 1 . Unknown Exits Taken 1 | 1 . . Scrap Searched 1 | . . 1 Spaces Dug . | . . . Terrain Destroyed . | . . . Melee . | . . . Projectile . | . . . AOE . | . . . Terrain Rammed . | . . . Walls Destroyed . | . . . Machines Disabled . | . . . Actions | -11 -10 -10 --------- Run | Yrd Mat Sub Total 843 | 41 399 403 Wait 24 | . 5 19 Move 702 | 35 321 346 Hop . | . . . Pick Up 13 | . 10 3 Fast Attach 11 | 6 3 2 Attach 2 | . . 2 Detach . | . . . Swap 11 | . 5 6 Drop 8 | . 3 5 Fire 68 | . 48 20 Melee . | . . . Ram . | . . . Kick . | . . . Crush . | . . . Escape Stasis . | . . . Rewire . | . . . Trap . | . . . Miscellaneous 4 | . 4 . Route ------- -11/Scrapyard -10/Materials (discovered 3 exits: [*Mat] / *Min / *Sub) -10/Subcaves History --------- Turn | Location | Event 3 | -11/Scrapyard | Discovered new exit (range 15) 49 | -11/Scrapyard | Entered Materials 315 | -10/Materials | Build established: Mutant 326 | -10/Materials | Discovered new exit (range 3) 352 | -10/Materials | Identified exit to Mines 390 | -10/Materials | Discovered new exit (range 10) 478 | -10/Materials | Core integrity fell below 50% 627 | -10/Materials | Identified exit to Subcaves 628 | -10/Materials | Entered Subcaves 629 | -10/Subcaves | Approached by a straggling Scientist 782 | -10/Subcaves | Core integrity fell below 20% 1004 | -10/Subcaves | Learned Materials terminal intel 1029 | -10/Subcaves | Learned location of Zion (-6) 1085 | -10/Subcaves | Destroyed by 4P-669(R) with Subdweller Laser Last Messages --------------- 00836_ Acquired Imp. Assault Rifle. 00842_ Subatomizers dissect the Sub. Laser. 00901_ Subatomizers dissect the Disposable Heat Sink. 00924_ Sub. Monowheel shoots sparks and powers down. 00925_ Dropped Broken Sub. Monowheel. 00938_ Acquired 12 matter. 00950_ Acquired 18 matter. 00969_ Searching scrap... 00969_ Found Sub. Machine Gun. 00969_ Found Battle Cannon. 00969_ Found 34 Matter. 00970_ Acquired 34 matter. 00971_ Acquired 5 matter. 01004_ Acquired derelict log, extracted data. Data stored: Materials terminal intel. 01029_ Acquired derelict log, extracted data. World map updated: -6/Zion. 01077_ Dropped Imp. Assault Rifle. Map ----- +----------------------------------------------------+ | | | | | ?????????????????????????????????????????????????? | | ?????????????????????????????????????????????????? | | ?????????????????????????????????????????????????? | | ?????????????????????????????????????????????????? | | ?????????????????????????????????????????????????? | | ?????????????????????????????????????????????????? | | ?????????????????????????????????????????????????? | | ?????????????????????????????????????????????????? | | ?????????????????????????????????????????????????? | | ?????????????????????????????????????????????????? | | ?????????????????????????????????????????????????? | | ?????????????????????????????????????????????????? | | ?????????????????????????????????????????????????? | | ?????????????????????????????????????????????????? | | ????????##???????????????????##??????????????????? | | ???????## ##?????############ ##?????????????????? | | ???????# #????## #?????????????????? | | ????????# #???## #?????????????????? | | ?????????# ##### ##????????????????? | | ####?????# ## #????????????????? | | # #####?# #### #????????????????? | | ### R ##???# ??????????????? | | ### ## ### R ##???? ???????????? | | ##?# ## ##?### ##[@ #?????? #??????????# | | #??## ##????#### #??????? #?????????? | | #???## ##???????# " ##?????????#?????????# | | #????#" #####???????# " " #???????????????????? | | #??? #???????????#" ##???????????????????? | | #? ##" #??????? ???# ##"#????????????????????? | | ###??## ??????? #??##?###????????????????????? | | #?????# ?????? #######??????????????????????# | | ####??### # ????? ##??????????????????#### | | ##????####???? #?????????? ?????## | | ###??## ##??? ???????????" ???# | | #### #??? #????????????" ## | | ## #???# #??????????????# | | ### ##### ???????????????? " | | ??## ## #????????????????????? | | ??## ## #????????????????????????# | | ?## ## #????????????????????????## | | ?# ### ## #?????????????????????????# | | ?# #?## #???????##????????????????## | | ## ######## ####### ### #?????????# | | # ##???# #?????????# | | ##### ????????## | | # # ## # ### #???????????# | | ## ######?# ##??????????????## | | ?#### ##### #????????##???????????????# | +----------------------------------------------------+ Best States ------------- Heat Dissipation 39 Energy Generation 10 Energy Capacity 250 Matter Stores 270 Matter Capacity 300 Sight Range 16 Terrain Scan Density 10 Evasion (%) 55 Item Schematics ----------------- None Robot Schematics ------------------ None Fabricated ------------ Nothing Repaired ---------- Nothing Studied --------- None Alien Tech Used ----------------- None Achievements -------------- None Challenges ------------ None Game ------ Seed LauncherProjectileCanceller Manual? 0 Play Time 00:10:36 Cumulative 77.5 hours Start 2026.09.06 @ 21:51:30 End 2026.09.07 @ 06:47:07 Sessions 2 Manual Loads 0 Difficulty Rogue Special Mode None Game No. 99 Rogue 99 Adventurer 0 Explorer 0 Win Type - Total 0 Types 0/0/0/0/0/0/0/0/0/0 Lore% 39 Gallery% 40 Achievement% 36 Wizard Run 0 Options --------- Layout 1 ASCII 0 Keyboard 0 Movement Mouse Keybinds 0 Fullscreen 2 Font 24/Smallcaps Map View 50x35 Zoom Use 0% Tactical HUD 1 Map Filters NONE Filters NONE Steam 1 RUN: c1a58e44-d401-4cb8-b67c-373f334a1107